Cogmind - Beta 17 @@@ ROGUE MODE // 2026.07.16 @ 01:05:04 Player: Ice_Kraken505 Result: Self-destructed Performance ------------- Evolutions (1) 500 Regions Visited (2) 400 Robots Destroyed (27) 135 Value Destroyed (527) 527 Prototype IDs (0) 0 Alien Tech Used (0) 0 Bonus (0) 0 TOTAL SCORE: 1562 Bonus ------- None Cogmind --------- Core Integrity 272/400 Matter 170/300 Energy 39/100 System Corruption 0% Temperature Cool (8) Movement Core (100) Ox1 Location -9/Materials Parts ------- > --- POWER (1) -------- (None) > --- PROPULSION (2) --- (None) > --- UTILITY (4) ------ Structural Scanner Seismic Detector > --- WEAPON (2) ------- Light Assault Rifle Mining Laser > --- INVENTORY (5) ---- Improved Ion Engine Small Storage Unit Small Laser Datajack Peak State ------------ > --- POWER ------------ Ion Engine > --- PROPULSION ------- Wheel Wheel > --- UTILITY ---------- Small Storage Unit Seismic Detector > --- WEAPON ----------- Medium Laser Light Assault Rifle > --- INVENTORY -------- Light Ion Engine Compact Wheel Small Laser [Rating: 7] Favorites ----------- Power Ion Engine Engine Ion Engine Propulsion Wheel Wheel Wheel Hover Unit Hover Unit Utility Seismic Detector Device Seismic Detector Storage Small Storage Unit Weapon Light Assault Rifle Energy Gun Small Laser Ballistic Gun Light Assault Rifle Launcher Grenade Launcher Special Weapon Mining Laser Build | -11 -10 -9 ------- Run | Yrd Mat Mat Slots Evolved 2 | . . 2 Power . | . . . Propulsion . | . . . Utility 2 | . . 2 Weapon . | . . . Parts Attached 20 | 8 7 5 Power 4 | 1 3 . Engine 4 | 1 3 . Core . | . . . Reactor . | . . . Propulsion 5 | 3 . 2 Treads . | . . . Leg . | . . . Wheel 3 | 3 . . Hover 2 | . . 2 Flight . | . . . Utility 4 | 2 1 1 Device 3 | 1 1 1 Storage 1 | 1 . . Processor . | . . . Hackware . | . . . Protection . | . . . Artifact . | . . . Weapon 7 | 2 3 2 Energy Gun 2 | 1 1 . Energy Cannon . | . . . Ballistic Gun 2 | 1 . 1 Ballistic Cannon . | . . . Launcher 1 | . 1 . Special Weapon 2 | . 1 1 Impact Weapon . | . . . Slashing Weapon . | . . . Piercing Weapon . | . . . Special Melee Weapon . | . . . Unidentified Prototypes . | . . . Parts Lost 10 | . 5 5 Power 3 | . 2 1 Propulsion 3 | . 1 2 Utility 1 | . . 1 Weapon 3 | . 2 1 Highest Loss Streak 3 | . 3 3 To Critical Strikes . | . . . Average Backups 4 | 1 4 4 Power . | . . . Propulsion . | . 1 . Utility . | . . . Weapon 1 | . 1 1 Tool/Special . | . . . Unused Backups 3 | . 1 2 Power . | . . . Propulsion 1 | . 1 . Utility 1 | . . 1 Weapon . | . . . Tool/Special 1 | . . 1 Average Slot Usage (%) 78 | . 87 57 Engine 12 | . 13 8 Wheel 13 | . 18 3 Hover 1 | . . 5 Device 24 | . 25 21 Storage 1 | . 2 . Energy Gun 8 | . 8 9 Ballistic Gun 6 | . 9 1 Launcher 6 | . 6 6 Special Weapon 1 | . 1 1 Peak Build Rating 7 | 7 7 7 Average Rating 5 | 5 6 5 On Entrance 4 | . 7 6 Avg Prop Armor Cover (%) . | . . . Naked Turns . | . . . Heaviest Build 14 | 14 14 11 Greatest Support 26 | 26 20 12 Greatest Overweight (x) 2 | . 1 2 Average Overweight (x) . | . . . Largest Inventory Capacity 8 | 8 8 8 Average Capacity 5 | 7 5 5 Most Carried 5 | 4 5 5 Average Carried 4 | 1 4 4 Final Capacity 8 | 8 5 5 Final Carried 5 | 4 5 4 Class Distribution -------------------- 94% | Mutant 5% | Scavenger-Mutant Dominant Class ---------------- Mutant | -10/Materials Mutant | -9/Materials Resources | -11 -10 -9 ----------- Run | Yrd Mat Mat Matter Collected 596 | 200 341 55 Remotely . | . . . Salvage Created 511 | 57 403 51 Parts 35 | 5 26 4 Haulers Intercepted . | . . . Recyclers Shooed . | . . . Parts Field Recycled . | . . . Retrieved Matter . | . . . Parts Self-Destructed . | . . . Prevented . | . . . Parts Restored . | . . . Kills | -11 -10 -9 ------- Run | Yrd Mat Mat Combat Hostiles Destroyed 21 | . 16 5 Guns 7 | . 6 1 AOE 14 | . 10 4 Classes Destroyed 5 | 1 4 . Tunneler 2 | 2 . . Operator 2 | . 1 1 Watcher 2 | . 2 . Swarmer 12 | . 8 4 Grunt 9 | . 8 1 Best Kill Streak 8 | 2 8 4 Combat Bots Only 4 | . 4 4 Max Kills in Single Turn 3 | 1 3 1 Gunslinging . | . . . Exploded 3 | . 3 1 Melee . | . . . Uniques/NPCs Destroyed . | . . . Combat | -11 -10 -9 -------- Run | Yrd Mat Mat Hostile Shots Fired 119 | . 50 69 Missed 40 | . 10 30 Hits 79 | . 40 39 Projectile 79 | . 40 39 Damage Taken 895 | . 449 446 Core 179 | . 51 128 Absorbed by Shields . | . . . Regen/Repaired (Parts) 27 | . 27 . Core Remaining (%) 89 | 100 79 . Volleys Fired 77 | 5 51 21 Largest 2 | 2 2 2 Hottest 140 | 70 120 140 Shots Fired 116 | 10 79 27 Gun 88 | 10 60 18 Cannon . | . . . Launcher 20 | . 13 7 Special 8 | . 6 2 Kinetic 46 | 5 36 5 Thermal 50 | 5 30 15 Explosive 20 | . 13 7 Electromagnetic . | . . . Robot Hit Streak 15 | 3 15 8 Robot Miss Streak 3 | 3 2 3 Penetration Max . | . . . Secondary Targets . | . . . Shots Hit Robots 62 | 5 43 14 Core Hits 43 | 2 33 8 Critical Kills . | . . . Critical Parts Destroyed . | . . . Critical Strikes 3 | 1 2 . Burn 3 | 1 2 . Melee Attacks . | . . . Impact . | . . . Slashing . | . . . Piercing . | . . . Sneak Attacks . | . . . Combat Hostiles . | . . . Follow-up Attacks . | . . . Damage Inflicted 1459 | 51 903 505 Guns 550 | 51 405 94 Cannons . | . . . Explosions 885 | . 498 387 Melee . | . . . Ramming . | . . . Kinetic 205 | 26 173 6 Thermal 369 | 25 232 112 Explosive 885 | . 498 387 Electromagnetic . | . . . Impact . | . . . Slashing . | . . . Piercing . | . . . Highest Corruption . | . . . Average Corruption . | . . . Corruption Purged . | . . . Corruption Blocked . | . . . Overload Shots . | . . . Overflow Damage 47 | . 1 46 Projectiles . | . . . Explosions 47 | . 1 46 Melee . | . . . Knockbacks . | . . . Impact . | . . . Kinetic . | . . . Secondary . | . . . Self-Inflicted Damage 64 | . 47 17 Shots 3 | . 2 1 Rammed . | . . . Targets Rammed . | . . . Kicked . | . . . Crushed . | . . . Highest Temperature 168 | 40 168 30 Average Temperature 39 | 20 47 7 Received Heat Transfer 258 | . 156 102 Siege Activations . | . . . Martial Activations . | . . . Shielding Activations . | . . . Robots Disrupted . | . . . Combat Hostiles . | . . . Robots Corrupted . | . . . Combat Hostiles . | . . . Parts Fried . | . . . Impact Corruptions . | . . . Robots Melted . | . . . Combat Hostiles . | . . . Parts Melted 4 | 1 2 1 Heat Transferred 1189 | 148 791 250 Parts Sabotaged . | . . . Parts Stolen . | . . . Parts Stripped . | . . . Power Chain Reactions . | . . . Alert | -11 -10 -9 ------- Run | Yrd Mat Mat Maximum Alert Level 1 | . 1 . Low Security (%) 74 | 100 60 100 Level 1 25 | . 39 . Level 2 . | . . . Level 3 . | . . . Level 4 . | . . . Level 5 . | . . . High Security . | . . . Max Security . | . . . Peak Influence 278 | 10 278 142 Initial 91 | . . 91 Average 100 | . 125 71 Influence Increases 771 | 10 534 227 Destroy 0b10 Robot/C 420 | . 320 100 Destroy 0b10 Robot/NC 30 | 10 15 5 Destroy Leader 74 | . 64 10 Successful Hack 9 | . 9 . Disable Machine 15 | . 15 . Destroy Structure 133 | . 81 52 Lose Combat Pursuer 90 | . 30 60 Influence Decreases 633 | 10 316 307 Entered New Map 127 | . . 127 Time Decay 406 | 10 266 130 Lost Part 100 | . 50 50 Squads Dispatched 7 | . 4 3 Investigation 4 | . 2 2 Extermination . | . . . Reinforcement 3 | . 2 1 Assault . | . . . Garrison . | . . . Intercept . | . . . Searches Triggered . | . . . Construction Impeded . | . . . Haulers Reinforced . | . . . Active Scanning Responses . | . . . Cargo Convoy Interrupts . | . . . Stealth | -11 -10 -9 --------- Run | Yrd Mat Mat Distress Signals 3 | . 1 2 Communications Jammed . | . . . Distress Signals . | . . . Times Spotted 44 | . 21 23 Peak Tracking Total 11 | . 4 11 Tactical Retreats 5 | . 2 3 Traps | -11 -10 -9 ------- Run | Yrd Mat Mat Traps Triggered 2 | . . 2 Indirectly . | . . . Trap Hack Attempts . | . . . Triggered . | . . . Disarmed . | . . . Reprogrammed . | . . . Reused . | . . . Traps Extracted . | . . . Installed . | . . . Triggered . | . . . Machines | -11 -10 -9 ---------- Run | Yrd Mat Mat Machines Disabled 1 | . 1 . Max in Single Turn 1 | . 1 . Machines Repaired . | . . . Machines Dismantled . | . . . Machines Sabotaged . | . . . Overloaded Fab Kills . | . . . Hacking | -11 -10 -9 --------- Run | Yrd Mat Mat Machines Accessed 8 | . 6 2 Terminals 7 | . 5 2 Fabricators . | . . . Repair Stations 1 | . 1 . Recycling Units . | . . . Scanalyzers . | . . . Garrison Access . | . . . Total Hacks 30 | . 23 7 Successful 8 | . 7 1 Failed 22 | . 16 6 Catastrophic 2 | . . 2 Database Lockouts . | . . . Manual 4 | . 2 2 Terminals 23 | . 16 7 Fabricators . | . . . Repair Stations 7 | . 7 . Recycling Units . | . . . Scanalyzers . | . . . Garrison Access . | . . . Terminal Hacks 3 | . 2 1 Level Access Points 1 | . . 1 Locate Traps 1 | . 1 . Zone Layout 1 | . 1 . Fabricator Hacks . | . . . Repair Station Hacks 3 | . 3 . Scan Component 2 | . 2 . Repair 1 | . 1 . Recycling Unit Hacks . | . . . Scanalyzer . | . . . Garrison Access Hacks . | . . . Unauthorized Hacks 2 | . 2 . Terminals 2 | . 2 . Track 2 | . 2 . Fabricators . | . . . Repair Stations . | . . . Recycling Units . | . . . Scanalyzers . | . . . Garrison Access . | . . . Data Cores Recovered . | . . . Used . | . . . Hacking Detections 7 | . 5 2 Full Trace Events 5 | . 3 2 Feedback Events . | . . . Feedback Blocked . | . . . Robot Schematics Acquired . | . . . Robots Built . | . . . Authchips . | . . . Time . | . . . Total Robot Build Rating . | . . . Part Schematics Acquired . | . . . Parts Built . | . . . Authchips . | . . . Time . | . . . Total Part Build Rating . | . . . Part Studies Acquired . | . . . Parts Repaired 1 | . 1 . Time 36 | . 36 . Parts Recycled . | . . . Recycled Matter . | . . . Retrieved Matter . | . . . Retrieved Components . | . . . Parts Scanalyzed . | . . . Part Schematics Acquired . | . . . Parts Damaged . | . . . Bothacking | -11 -10 -9 ------------ Run | Yrd Mat Mat Used RIF Installer . | . . . Robots Hacked . | . . . Non-combat . | . . . Combat . | . . . Robot Hacks Applied . | . . . Relay Couplers Released . | . . . Fabnet Peak Effective % . | . . . Robots Rewired . | . . . Allies Hacked . | . . . Hacks Repelled . | . . . Allies | -11 -10 -9 -------- Run | Yrd Mat Mat Total Allies . | . . . Largest Group . | . . . Highest-Rated Group . | . . . Highest-Rated Ally . | . . . Total Orders . | . . . Ally Attacks . | . . . Total Damage . | . . . Kills . | . . . Allies Corrupted . | . . . Allies Melted . | . . . Intel | -11 -10 -9 ------- Run | Yrd Mat Mat Active Infowar (turns) 929 | 14 641 274 Structural 785 | . 511 274 Seismic 917 | 14 641 262 Robot Analysis Total . | . . . Derelict Logs Recovered . | . . . Drone Launches . | . . . Drone Recoveries . | . . . Exploration | -11 -10 -9 ------------- Run | Yrd Mat Mat Turns Passed 1003 | 88 641 274 Spaces Moved 765 | 68 482 215 Core 37 | 2 . 35 Treads . | . . . Legs . | . . . Wheels 630 | 66 482 82 Hover 98 | . . 98 Flight . | . . . Fastest Speed 50 | 50 80 50 Average Speed 86 | 86 83 93 Slowest Speed 150 | 90 95 150 Overloaded Moves . | . . . Propulsion Burnouts . | . . . Robots Hopped . | . . . Potential Cave-ins . | . . . Cave-ins Triggered . | . . . Exploration Rate (%) 36 | 4 75 29 Regions Visited 2 Branch Regions . Pre-discovered Areas . | . . . Known Exits Taken . | . . . Unknown Exits Taken 2 | 1 1 . Scrap Searched . | . . . Spaces Dug 6 | . 5 1 Terrain Destroyed 132 | . 80 52 Melee . | . . . Projectile 6 | . 5 1 AOE 126 | . 75 51 Terrain Rammed . | . . . Walls Destroyed . | . . . Machines Disabled . | . . . Actions | -11 -10 -9 --------- Run | Yrd Mat Mat Total 971 | 83 632 256 Wait 78 | . 76 2 Move 763 | 67 481 215 Hop . | . . . Pick Up 12 | 3 5 4 Fast Attach 14 | 7 3 4 Attach 7 | . 4 3 Detach 3 | . 2 1 Swap 12 | 1 8 3 Drop 5 | . 2 3 Fire 77 | 5 51 21 Melee . | . . . Ram . | . . . Kick . | . . . Crush . | . . . Escape Stasis . | . . . Rewire . | . . . Trap . | . . . Miscellaneous . | . . . Route ------- -11/Scrapyard -10/Materials (discovered 2 exits: *Mat / [*Min]) -9/Materials (discovered 3 exits: Mat x3) History --------- Turn | Location | Event 4 | -11/Scrapyard | Discovered new exit (range 16) 89 | -11/Scrapyard | Entered Materials 324 | -10/Materials | Lost 3 parts (1p1n1w) 351 | -10/Materials | Build established: Mutant 430 | -10/Materials | Discovered new exit (range 5) 509 | -10/Materials | Repaired Broken Grenade Launcher 655 | -10/Materials | Discovered new exit (range 8) 730 | -10/Materials | Entered another Materials area 730 | -9/Materials | Evolved 2 slots: Utility x2 746 | -9/Materials | Identified exit to Materials 1004 | -9/Materials | Self-destructed Last Messages --------------- S-10 Pest destroyed. U-05 Engineer lays Concrete. Acquired 11 matter. U-05 Engineer lays Concrete. U-05 Engineer builds a Wall. Acquired 6 matter. U-05 Engineer lays Concrete. K-01 Serf collects debris. U-05 Engineer builds a Wall. U-05 Engineer lays Concrete. U-05 Engineer builds a Wall. Acquired Imp. Ion Engine. S-10 Pest destroyed. Destroyed Lgt. Ion Engine. Hover Unit destroyed. S-10 Pest destroyed. Seismic Detector destroyed. S-10 Pest destroyed. Grenade Launcher destroyed. Acquired Seismic Detector. Map ----- +----------------------------------------------------+ | ?????## ## = ##??# ????? | | ?????## ## = ##??????????? | | ?????############# ##??????????? | | ?????############# ###??????????? | | ????????????????## ##??????????? | | ????????????????## ##??????????? | | ??????????######## ##??????????? | | ??????????######## ##??????????? | | ??????????## [ ##??????????? | | ??????????## # #######?????? | | ??????????##[ """ # ########?????? | | ??????????## """ # # ?????? | | ??????????## """ T ?????? | | ??????????## ###??? | | ??????########### #### ??? | | ??????######## ? | | ?????? # =[ ? | | ??????"" =[ss# ^ ] #+## ??? | | ???????" ![ # * ##??? | | ???????" [ # ?????????? | | ???????? s # ## ??????????? | | ???????? # ##???????????? | | ????????? + ### ### ?????????? | | ????? # ###+#####?????????? | | ????? ####;### # ##?????????? | | ?????## @ # # [! ##?????????? | | ?????## # # !! ##?????????? | | ?????## "" + + ! ##?????????? | | ?????## S"" # # ###????????? | | ?????## "" # # ##????????? | | ?????## [ #############????????? | | ?????#####################????????? | | ?????##########???????????????????? | | ??????????????????????????????????? | | ??????????????????????????????????? | | ??????????????????????????????????? | | ??????????????????????????????????? | | ??????????????????????????????????? | | ??????????????????????????????????? | | ??????????????????????????????????? | | ??????????????????????????????????? | | | | | | | | | | | | | | | | | | | +----------------------------------------------------+ Best States ------------- Heat Dissipation 28 Energy Generation 10 Energy Capacity 250 Matter Stores 278 Matter Capacity 300 Sight Range 16 Terrain Scan Density 10 Evasion (%) 53 Item Schematics ----------------- None Robot Schematics ------------------ None Fabricated ------------ Nothing Repaired ---------- Grenade Launcher | 55% | -10/Materials | Broken Studied --------- None Alien Tech Used ----------------- None Achievements -------------- None Challenges ------------ None Game ------ Seed ControlWeightLance Manual? 0 Play Time 00:21:16 Cumulative 23.3 hours Start 2026.07.16 @ 00:41:22 End 2026.07.16 @ 01:05:04 Sessions 1 Manual Loads 0 Difficulty Rogue Special Mode None Game No. 28 Rogue 28 Adventurer 0 Explorer 0 Win Type - Total 0 Types 0/0/0/0/0/0/0/0/0/0 Lore% 18 Gallery% 22 Achievement% 14 Wizard Run 0 Options --------- Layout 1 ASCII 0 Keyboard 1 Movement Arrows Keybinds 0 Fullscreen 1 Font 24/Smallcaps Map View 50x35 Zoom Use 0% Tactical HUD 0 Map Filters NONE Filters NONE Steam 1 RUN: d6e88743-f7b1-49a9-86ef-64d8a7de3d06